[Event "MČR v bleskovém šachu družstev 2019"]
[Site "Teplice, Czech Republic"]
[Date "2019.09.14"]
[Round "10.7"]
[White "Cech, Pavel"]
[Black "Vrbata, Zbynek"]
[Result "0-1"]
[TimeControl "3 mim. + 2 s"]
[WhiteTitle "IM"]
[BlackTitle "FM"]
[BlackFideId "301256"]
[WhiteElo "2387"]
[BlackElo "2324"]

1. e4 {[%clk 00:03:02]} {[%emt 00:00:01]} e6 {[%clk 00:03:03]} {[%emt
00:00:01]} 2. d4 {[%clk 00:03:02]} {[%emt 00:00:02]} d5 {[%clk 00:03:04]} 3.
Nd2 {[%clk 00:03:03]} {[%emt 00:00:02]} Nf6 {[%clk 00:03:05]} {[%emt 00:00:01]}
4. e5 {[%clk 00:03:04]} {[%emt 00:00:01]} Nfd7 {[%clk 00:03:06]} 5. Bd3 {[%clk
00:03:05]} {[%emt 00:00:01]} c5 {[%clk 00:03:07]} 6. c3 {[%clk 00:03:06]} Nc6
{[%clk 00:03:08]} 7. Ngf3 {[%clk 00:03:07]} {[%emt 00:00:03]} g6 {[%clk
00:03:01]} {[%emt 00:00:08]} 8. h4 {[%clk 00:03:05]} {[%emt 00:00:05]} h6
{[%clk 00:03:02]} {[%emt 00:00:01]} 9. h5 {[%clk 00:02:19]} {[%emt 00:00:48]}
g5 {[%clk 00:03:03]} {[%emt 00:00:01]} 10. dxc5 {[%clk 00:02:20]} {[%emt
00:00:01]} Ndxe5 {[%clk 00:02:57]} {[%emt 00:00:08]} 11. Bb5 {[%clk 00:02:00]}
{[%emt 00:00:22]} Qc7 {[%clk 00:02:44]} {[%emt 00:00:16]} 12. b4 {[%clk
00:01:49]} {[%emt 00:00:12]} Bg7 {[%clk 00:02:32]} {[%emt 00:00:14]} 13. O-O
{[%clk 00:01:38]} {[%emt 00:00:14]} O-O {[%clk 00:02:23]} {[%emt 00:00:11]} 14.
Nd4 {[%clk 00:00:53]} {[%emt 00:00:46]} a6 {[%clk 00:01:50]} {[%emt 00:00:35]}
15. Be2 {[%clk 00:00:47]} {[%emt 00:00:08]} b6 {[%clk 00:01:29]} {[%emt
00:00:24]} 16. cxb6 {[%clk 00:00:42]} {[%emt 00:00:06]} Qxb6 {[%clk 00:01:30]}
{[%emt 00:00:02]} 17. N2b3 {[%clk 00:00:39]} {[%emt 00:00:05]} Nc4 {[%clk
00:01:11]} {[%emt 00:00:21]} 18. Nxc6 {[%clk 00:00:13]} {[%emt 00:00:29]} Qxc6
{[%clk 00:01:10]} {[%emt 00:00:03]} 19. Nd4 {[%clk 00:00:14]} Qb6 {[%clk
00:01:05]} {[%emt 00:00:06]} 20. Kh1 {[%clk 00:00:15]} {[%emt 00:00:02]} e5
{[%clk 00:01:04]} {[%emt 00:00:03]} 21. Nb3 {[%clk 00:00:15]} {[%emt 00:00:02]}
Bb7 {[%clk 00:01:01]} {[%emt 00:00:05]} 22. Nc5 {[%clk 00:00:17]} Bc6 {[%clk
00:01:02]} 23. Bxc4 {[%clk 00:00:14]} {[%emt 00:00:05]} dxc4 {[%clk 00:01:03]}
{[%emt 00:00:02]} 24. Qe2 {[%clk 00:00:14]} {[%emt 00:00:01]} a5 {[%clk
00:00:59]} {[%emt 00:00:06]} 25. Be3 {[%clk 00:00:12]} {[%emt 00:00:04]} Qc7
{[%clk 00:00:52]} {[%emt 00:00:09]} 26. a4 {[%clk 00:00:13]} {[%emt 00:00:01]}
Rad8 {[%clk 00:00:47]} {[%emt 00:00:07]} 27. Qxc4 {[%clk 00:00:13]} {[%emt
00:00:02]} Kh8 {[%clk 00:00:45]} {[%emt 00:00:04]} 28. b5 {[%clk 00:00:12]}
{[%emt 00:00:03]} Ba8 {[%clk 00:00:46]} 29. Qe2 {[%clk 00:00:11]} {[%emt
00:00:03]} Qc8 {[%clk 00:00:46]} {[%emt 00:00:02]} 30. Kg1 {[%clk 00:00:11]}
{[%emt 00:00:01]} f5 {[%clk 00:00:47]} {[%emt 00:00:01]} 31. f3 {[%clk
00:00:12]} {[%emt 00:00:01]} g4 {[%clk 00:00:43]} {[%emt 00:00:06]} 32. fxg4
{[%clk 00:00:12]} {[%emt 00:00:03]} f4 {[%clk 00:00:44]} 33. Bf2 {[%clk
00:00:13]} {[%emt 00:00:02]} f3 {[%clk 00:00:46]} 34. Qc4 {[%clk 00:00:06]}
{[%emt 00:00:09]} fxg2 {[%clk 00:00:45]} {[%emt 00:00:02]} 35. Rfd1 {[%clk
00:00:06]} {[%emt 00:00:02]} Rde8 {[%clk 00:00:41]} {[%emt 00:00:06]} 36. g5
{[%clk 00:00:04]} {[%emt 00:00:04]} Qh3 {[%clk 00:00:41]} {[%emt 00:00:02]} 0-1

[Event "MČR v bleskovém šachu družstev 2019"]
[Site "Teplice, Czech Republic"]
[Date "2019.09.14"]
[Round "10.8"]
[White "Kuba, Jindrich"]
[Black "Sodoma, Jan"]
[Result "0-1"]
[TimeControl "3 mim. + 2 s"]
[WhiteTitle "FM"]
[BlackTitle "IM"]
[WhiteFideId "318248"]
[WhiteElo "2223"]
[BlackElo "2193"]

1. e4 {[%clk 00:03:03]} {[%emt 00:02:44]} e5 {[%clk 00:03:03]} {[%emt
00:00:01]} 2. Nf3 {[%clk 00:03:04]} {[%emt 00:00:01]} Nc6 {[%clk 00:03:04]} 3.
Bb5 {[%clk 00:03:05]} {[%emt 00:00:02]} a6 {[%clk 00:03:05]} 4. Ba4 {[%clk
00:03:06]} Nf6 {[%clk 00:03:05]} 5. O-O {[%clk 00:03:07]} {[%emt 00:00:04]} Be7
{[%clk 00:03:06]} 6. Re1 {[%clk 00:03:04]} {[%emt 00:00:06]} b5 {[%clk
00:03:07]} {[%emt 00:00:01]} 7. Bb3 {[%clk 00:03:05]} {[%emt 00:00:02]} d6
{[%clk 00:03:07]} 8. c3 {[%clk 00:03:05]} {[%emt 00:00:02]} O-O {[%clk
00:03:07]} {[%emt 00:00:02]} 9. h3 {[%clk 00:03:06]} {[%emt 00:00:01]} Na5
{[%clk 00:03:06]} {[%emt 00:00:02]} 10. Bc2 {[%clk 00:03:07]} c5 {[%clk
00:03:07]} {[%emt 00:00:02]} 11. d4 {[%clk 00:03:03]} {[%emt 00:00:06]} Qc7
{[%clk 00:03:04]} {[%emt 00:00:05]} 12. Nbd2 {[%clk 00:03:00]} {[%emt
00:00:05]} cxd4 {[%clk 00:03:04]} {[%emt 00:00:02]} 13. cxd4 {[%clk 00:03:01]}
{[%emt 00:00:02]} Rd8 {[%clk 00:03:04]} {[%emt 00:00:01]} 14. Nf1 {[%clk
00:02:54]} {[%emt 00:00:09]} exd4 {[%clk 00:03:02]} {[%emt 00:00:04]} 15. Nxd4
{[%clk 00:02:55]} {[%emt 00:00:02]} d5 {[%clk 00:03:02]} {[%emt 00:00:02]} 16.
e5 {[%clk 00:02:38]} {[%emt 00:00:19]} Ne4 {[%clk 00:03:02]} {[%emt 00:00:03]}
17. Nf3 {[%clk 00:01:56]} {[%emt 00:00:44]} Bf5 {[%clk 00:02:24]} {[%emt
00:00:40]} 18. Ne3 {[%clk 00:01:51]} {[%emt 00:00:07]} Be6 {[%clk 00:01:55]}
{[%emt 00:00:31]} 19. b3 {[%clk 00:01:40]} {[%emt 00:00:13]} Rac8 {[%clk
00:01:48]} {[%emt 00:00:09]} 20. Bb2 {[%clk 00:01:22]} {[%emt 00:00:20]} Bb4
{[%clk 00:01:44]} {[%emt 00:00:06]} 21. Rf1 {[%clk 00:01:17]} {[%emt 00:00:08]}
Nc3 {[%clk 00:01:31]} {[%emt 00:00:15]} 22. Qd3 {[%clk 00:01:12]} {[%emt
00:00:07]} g6 {[%clk 00:01:32]} {[%emt 00:00:01]} 23. Rac1 {[%clk 00:01:08]}
{[%emt 00:00:06]} d4 {[%clk 00:01:27]} {[%emt 00:00:07]} 24. Nxd4 {[%clk
00:00:59]} {[%emt 00:00:10]} Rxd4 {[%clk 00:01:27]} {[%emt 00:00:01]} 25. Qxd4
{[%clk 00:00:50]} {[%emt 00:00:11]} Ne2+ {[%clk 00:01:28]} {[%emt 00:00:02]} 26.
Kh1 {[%clk 00:00:52]} Nxd4 {[%clk 00:01:28]} {[%emt 00:00:02]} 27. Bxd4 {[%clk
00:00:53]} {[%emt 00:00:01]} Bd2 {[%clk 00:01:25]} {[%emt 00:00:05]} 28. Rcd1
{[%clk 00:00:33]} {[%emt 00:00:22]} Bxe3 {[%clk 00:01:25]} {[%emt 00:00:02]} 29.
Bxe3 {[%clk 00:00:31]} {[%emt 00:00:04]} Qxc2 {[%clk 00:01:26]} {[%emt
00:00:01]} 30. Rc1 {[%clk 00:00:31]} {[%emt 00:00:03]} Qxa2 {[%clk 00:01:25]}
{[%emt 00:00:02]} 31. Rxc8+ {[%clk 00:00:31]} {[%emt 00:00:02]} Bxc8 {[%clk
00:01:26]} {[%emt 00:00:02]} 32. Rd1 {[%clk 00:00:32]} Nc6 {[%clk 00:01:21]}
{[%emt 00:00:07]} 33. Rc1 {[%clk 00:00:30]} {[%emt 00:00:04]} Bd7 {[%emt
00:00:05]} 34. Rd1 Be8 {[%clk 00:01:08]} {[%emt 00:00:11]} 35. Kh2 {[%clk
00:00:16]} {[%emt 00:00:18]} Qxb3 {[%clk 00:01:08]} {[%emt 00:00:02]} 36. Rc1
{[%clk 00:00:17]} a5 {[%clk 00:01:06]} {[%emt 00:00:05]} 0-1

[Event "MČR v bleskovém šachu družstev 2019"]
[Site "Teplice, Czech Republic"]
[Date "2019.09.14"]
[Round "10.9"]
[White "Jirovsky, Milos"]
[Black "Krejci, Jan"]
[Result "1-0"]
[TimeControl "3 mim. + 2 s"]
[WhiteTitle "GM"]
[BlackTitle "GM"]
[WhiteFideId "303224"]
[BlackFideId "322156"]
[WhiteElo "2499"]
[BlackElo "2527"]

1. Nf3 {[%emt 00:16:16]} Nf6 {[%emt 00:00:20]} 2. c4 {[%emt 00:00:02]} e6
{[%emt 00:00:01]} 3. g3 {[%emt 00:00:01]} d5 4. Bg2 {[%emt 00:00:01]} a6 {[%emt
00:00:03]} 5. b3 {[%emt 00:00:02]} b5 {[%emt 00:00:01]} 6. O-O {[%emt
00:00:02]} Bb7 7. Bb2 {[%emt 00:00:13]} Be7 {[%emt 00:00:01]} 8. cxd5 {[%emt
00:00:06]} exd5 {[%emt 00:00:01]} 9. d4 {[%emt 00:00:03]} O-O {[%emt 00:00:02]}
10. Nbd2 {[%emt 00:00:02]} Nbd7 {[%emt 00:00:01]} 11. Rc1 {[%emt 00:00:01]} c5
12. dxc5 {[%emt 00:00:02]} Bxc5 {[%emt 00:00:03]} 13. Ne5 {[%emt 00:00:05]} Rc8
{[%emt 00:00:16]} 14. Nxd7 {[%emt 00:00:04]} Nxd7 {[%emt 00:00:01]} 15. Nf3
{[%emt 00:00:06]} Re8 {[%emt 00:00:08]} 16. Bh3 {[%emt 00:00:12]} Rc7 {[%emt
00:00:14]} 17. Qd3 {[%emt 00:00:18]} Nf6 {[%emt 00:00:18]} 18. Be5 {[%emt
00:00:45]} Bd6 {[%emt 00:00:17]} 19. Rxc7 {[%emt 00:00:10]} Bxc7 {[%emt
00:00:07]} 20. Bxc7 {[%emt 00:00:11]} Qxc7 {[%emt 00:00:01]} 21. Nd4 {[%emt
00:00:04]} Bc8 {[%emt 00:00:13]} 22. Bg2 {[%emt 00:00:08]} Bg4 {[%emt
00:00:01]} 23. h3 {[%emt 00:00:11]} Bh5 {[%emt 00:00:02]} 24. a4 {[%emt
00:00:06]} Bg6 {[%emt 00:00:10]} 25. Qd2 {[%emt 00:00:04]} bxa4 {[%emt
00:00:11]} 26. bxa4 {[%emt 00:00:01]} Be4 {[%emt 00:00:01]} 27. Rc1 {[%emt
00:00:04]} Qd7 28. a5 {[%emt 00:00:10]} Bxg2 {[%emt 00:00:11]} 29. Kxg2 g6
{[%emt 00:00:02]} 30. Qf4 {[%emt 00:00:03]} Kg7 {[%emt 00:00:31]} 31. Rc7
{[%emt 00:00:03]} Qd8 {[%emt 00:00:01]} 32. Rc6 {[%emt 00:00:11]} Re4 {[%emt
00:00:04]} 33. Nf5+ {[%emt 00:00:02]} Kg8 {[%emt 00:00:22]} 34. Qg5 {[%emt
00:00:05]} Re6 {[%emt 00:00:07]} 35. Rxe6 {[%emt 00:00:08]} fxe6 {[%emt
00:00:01]} 36. Nd4 Kf7 {[%emt 00:00:03]} 37. Qe5 {[%emt 00:00:03]} Qe7 {[%emt
00:00:04]} 38. Qb8 {[%emt 00:00:02]} Nd7 {[%emt 00:00:02]} 39. Qc7 {[%emt
00:00:02]} Nf6 {[%emt 00:00:03]} 40. Qb6 e5 {[%emt 00:00:02]} 41. Nc6 {[%emt
00:00:01]} Qe6 {[%emt 00:00:04]} 42. Nd8+ {[%emt 00:00:01]} 1-0

[Event "MČR v bleskovém šachu družstev 2019"]
[Site "Teplice, Czech Republic"]
[Date "2019.09.14"]
[Round "10.10"]
[White "Sorm, Daniel"]
[Black "Sokolov, Alexander"]
[Result "0-1"]
[TimeControl "3 mim. + 2 s"]
[WhiteTitle "FM"]
[BlackTitle "FM"]
[WhiteFideId "5400139"]
[BlackFideId "4119177"]
[WhiteElo "2310"]
[BlackElo "2417"]

1. d4 {[%clk 00:02:48]} {[%emt 00:00:15]} Nf6 {[%clk 00:03:02]} {[%emt
00:00:02]} 2. c4 {[%clk 00:02:48]} {[%emt 00:00:02]} g6 {[%clk 00:03:03]}
{[%emt 00:00:02]} 3. Nc3 {[%clk 00:02:48]} {[%emt 00:00:02]} Bg7 {[%clk
00:03:03]} {[%emt 00:00:02]} 4. e4 {[%clk 00:02:48]} {[%emt 00:00:01]} d6
{[%clk 00:03:04]} 5. h3 {[%clk 00:02:47]} {[%emt 00:00:05]} O-O {[%clk
00:03:04]} 6. Bg5 {[%clk 00:02:48]} h6 {[%clk 00:03:04]} {[%emt 00:00:04]} 7.
Be3 {[%clk 00:02:48]} {[%emt 00:00:01]} e5 {[%clk 00:03:05]} {[%emt 00:00:01]}
8. d5 {[%clk 00:02:49]} a5 {[%clk 00:03:05]} {[%emt 00:00:02]} 9. Bd3 {[%clk
00:02:47]} {[%emt 00:00:04]} Na6 {[%clk 00:03:06]} {[%emt 00:00:01]} 10. Qd2
{[%clk 00:02:47]} {[%emt 00:00:02]} Kh7 {[%clk 00:03:06]} {[%emt 00:00:02]} 11.
g4 {[%clk 00:02:42]} {[%emt 00:00:07]} Nd7 {[%clk 00:03:07]} {[%emt 00:00:01]}
12. O-O-O {[%clk 00:02:38]} {[%emt 00:00:06]} Ndc5 {[%clk 00:03:04]} {[%emt
00:00:05]} 13. Bb1 {[%clk 00:02:39]} {[%emt 00:00:02]} Nb4 {[%clk 00:03:02]}
{[%emt 00:00:03]} 14. Nge2 {[%clk 00:02:29]} {[%emt 00:00:12]} Bd7 {[%clk
00:03:02]} {[%emt 00:00:02]} 15. f3 {[%clk 00:02:29]} {[%emt 00:00:03]} Qb8
{[%clk 00:02:59]} {[%emt 00:00:04]} 16. h4 {[%clk 00:02:08]} {[%emt 00:00:23]}
b5 {[%clk 00:03:00]} {[%emt 00:00:01]} 17. Bxc5 {[%clk 00:01:57]} {[%emt
00:00:13]} dxc5 {[%clk 00:03:01]} {[%emt 00:00:01]} 18. Nxb5 {[%clk 00:01:41]}
{[%emt 00:00:18]} Bxb5 {[%clk 00:03:02]} {[%emt 00:00:01]} 19. cxb5 {[%clk
00:01:42]} {[%emt 00:00:01]} Qxb5 {[%clk 00:02:59]} {[%emt 00:00:05]} 20. Nc3
{[%clk 00:01:36]} {[%emt 00:00:08]} Qb6 {[%clk 00:02:51]} {[%emt 00:00:10]} 21.
h5 {[%clk 00:01:33]} {[%emt 00:00:05]} Kg8 {[%clk 00:02:30]} {[%emt 00:00:23]}
22. Rdg1 {[%clk 00:01:18]} {[%emt 00:00:17]} Qf6 {[%clk 00:02:20]} {[%emt
00:00:12]} 23. g5 {[%clk 00:00:59]} {[%emt 00:00:21]} hxg5 {[%clk 00:02:18]}
{[%emt 00:00:04]} 24. h6 {[%clk 00:00:58]} {[%emt 00:00:03]} Bh8 {[%clk
00:02:14]} {[%emt 00:00:05]} 25. h7+ {[%clk 00:00:45]} {[%emt 00:00:16]} Kg7
{[%clk 00:02:16]} {[%emt 00:00:01]} 26. Rg4 {[%clk 00:00:46]} Qxf3 {[%clk
00:02:06]} {[%emt 00:00:12]} 27. Qxg5 {[%clk 00:00:28]} {[%emt 00:00:20]} Qxh1+
{[%clk 00:02:05]} {[%emt 00:00:03]} 28. Rg1 {[%clk 00:00:23]} {[%emt 00:00:06]}
Qh6 {[%clk 00:02:05]} {[%emt 00:00:02]} 0-1

[Event "MČR v bleskovém šachu družstev 2019"]
[Site "Teplice, Czech Republic"]
[Date "2019.09.14"]
[Round "10.12"]
[White "Krejci, Jan"]
[Black "Postupa, Pavel"]
[Result "0-1"]
[TimeControl "3 mim. + 2 s"]
[WhiteFideId "316873"]
[BlackFideId "326410"]
[WhiteElo "2048"]
[BlackElo "2184"]

1. Nf3 {[%clk 00:03:01]} {[%emt 00:00:02]} Nf6 {[%clk 00:03:00]} {[%emt
00:00:04]} 2. c4 {[%clk 00:03:03]} {[%emt 00:00:01]} g6 {[%clk 00:03:00]}
{[%emt 00:00:02]} 3. b3 {[%clk 00:03:03]} {[%emt 00:00:02]} Bg7 {[%clk
00:03:00]} {[%emt 00:00:01]} 4. Bb2 {[%clk 00:03:04]} {[%emt 00:00:01]} c5
{[%clk 00:03:00]} {[%emt 00:00:01]} 5. g3 {[%clk 00:03:05]} {[%emt 00:00:01]}
O-O {[%clk 00:03:00]} {[%emt 00:00:01]} 6. Bg2 {[%clk 00:03:06]} {[%emt
00:00:01]} Nc6 {[%clk 00:03:00]} {[%emt 00:00:02]} 7. O-O {[%clk 00:03:07]}
{[%emt 00:00:02]} b6 {[%clk 00:03:00]} {[%emt 00:00:02]} 8. e3 {[%clk
00:03:05]} {[%emt 00:00:04]} Bb7 {[%clk 00:02:57]} {[%emt 00:00:05]} 9. d4
{[%clk 00:03:04]} {[%emt 00:00:03]} cxd4 {[%clk 00:02:57]} {[%emt 00:00:02]} 10.
Nxd4 {[%clk 00:03:02]} {[%emt 00:00:04]} Rc8 {[%clk 00:02:55]} {[%emt
00:00:04]} 11. Nc3 {[%clk 00:02:56]} {[%emt 00:00:08]} d6 {[%clk 00:02:56]}
{[%emt 00:00:01]} 12. Ncb5 {[%clk 00:02:40]} {[%emt 00:00:18]} a6 {[%clk
00:02:50]} {[%emt 00:00:08]} 13. Nxc6 {[%clk 00:02:29]} {[%emt 00:00:13]} Bxc6
{[%clk 00:02:51]} {[%emt 00:00:01]} 14. Nd4 {[%clk 00:02:27]} {[%emt 00:00:04]}
Bxg2 {[%clk 00:02:51]} {[%emt 00:00:02]} 15. Kxg2 {[%clk 00:02:28]} {[%emt
00:00:01]} Qc7 {[%clk 00:02:49]} {[%emt 00:00:04]} 16. Rb1 {[%clk 00:02:22]}
{[%emt 00:00:08]} Rfd8 {[%clk 00:02:49]} {[%emt 00:00:02]} 17. Qf3 {[%clk
00:02:18]} {[%emt 00:00:07]} Nd7 {[%clk 00:02:43]} {[%emt 00:00:07]} 18. Kg1
{[%clk 00:02:07]} {[%emt 00:00:13]} Ne5 {[%clk 00:02:44]} {[%emt 00:00:01]} 19.
Qe2 {[%clk 00:02:03]} {[%emt 00:00:06]} h5 {[%clk 00:02:32]} {[%emt 00:00:14]}
20. h4 {[%clk 00:02:04]} {[%emt 00:00:01]} Ng4 {[%clk 00:02:32]} {[%emt
00:00:02]} 21. Nf3 {[%clk 00:01:58]} {[%emt 00:00:07]} Bxb2 {[%clk 00:02:28]}
{[%emt 00:00:07]} 22. Rxb2 {[%clk 00:01:54]} {[%emt 00:00:06]} d5 {[%clk
00:02:29]} {[%emt 00:00:01]} 23. Rc2 {[%clk 00:01:45]} {[%emt 00:00:11]} a5
{[%clk 00:01:44]} {[%emt 00:00:47]} 24. Rfc1 {[%clk 00:01:46]} {[%emt
00:00:02]} Qd6 {[%clk 00:01:45]} {[%emt 00:00:01]} 25. Rd1 {[%clk 00:01:38]}
{[%emt 00:00:10]} Qf6 {[%clk 00:01:19]} {[%emt 00:00:27]} 26. Rcd2 {[%clk
00:01:25]} {[%emt 00:00:16]} e6 {[%clk 00:00:58]} {[%emt 00:00:24]} 27. cxd5
{[%clk 00:01:25]} {[%emt 00:00:02]} exd5 {[%clk 00:00:58]} {[%emt 00:00:01]} 28.
Rxd5 {[%clk 00:01:18]} {[%emt 00:00:09]} Rxd5 {[%clk 00:01:00]} 29. Rxd5 {[%clk
00:01:19]} {[%emt 00:00:01]} Rc1+ {[%clk 00:00:48]} {[%emt 00:00:13]} 30. Rd1
{[%clk 00:01:06]} {[%emt 00:00:15]} Qa1 {[%clk 00:00:44]} {[%emt 00:00:06]} 31.
Rxc1 {[%clk 00:01:00]} {[%emt 00:00:08]} Qxc1+ {[%clk 00:00:45]} {[%emt
00:00:01]} 32. Kg2 {[%clk 00:01:02]} {[%emt 00:00:01]} Kg7 {[%clk 00:00:39]}
{[%emt 00:00:08]} 33. Qd2 {[%clk 00:00:59]} {[%emt 00:00:04]} Qc6 {[%clk
00:00:39]} {[%emt 00:00:03]} 34. Qd4+ {[%clk 00:00:57]} {[%emt 00:00:03]} f6
{[%clk 00:00:40]} {[%emt 00:00:02]} 35. e4 {[%clk 00:00:55]} {[%emt 00:00:04]}
b5 {[%clk 00:00:35]} {[%emt 00:00:07]} 36. Qd3 {[%clk 00:00:48]} {[%emt
00:00:09]} a4 {[%clk 00:00:36]} {[%emt 00:00:01]} 37. bxa4 {[%clk 00:00:48]}
{[%emt 00:00:02]} bxa4 {[%clk 00:00:37]} 38. a3 {[%clk 00:00:49]} {[%emt
00:00:02]} Qb7 {[%clk 00:00:33]} {[%emt 00:00:06]} 39. Nd2 {[%clk 00:00:46]}
{[%emt 00:00:04]} Qa7 {[%clk 00:00:31]} {[%emt 00:00:04]} 40. Qe2 {[%clk
00:00:44]} {[%emt 00:00:04]} Qd4 {[%clk 00:00:31]} {[%emt 00:00:02]} 41. Nc4
{[%clk 00:00:43]} {[%emt 00:00:03]} Nxf2 {[%clk 00:00:29]} {[%emt 00:00:05]} 42.
Qxf2 {[%clk 00:00:44]} {[%emt 00:00:01]} Qxe4+ {[%clk 00:00:29]} {[%emt
00:00:02]} 43. Kh2 {[%clk 00:00:44]} {[%emt 00:00:02]} Qxc4 {[%clk 00:00:29]}
{[%emt 00:00:02]} 44. Qa7+ {[%clk 00:00:45]} {[%emt 00:00:01]} Kh6 {[%clk
00:00:27]} {[%emt 00:00:05]} 45. Qe3+ {[%clk 00:00:45]} {[%emt 00:00:01]} Kh7
{[%clk 00:00:14]} {[%emt 00:00:15]} 46. Qe7+ {[%clk 00:00:45]} {[%emt
00:00:02]} Kh6 {[%clk 00:00:14]} {[%emt 00:00:02]} 47. Qe3+ {[%clk 00:00:44]}
{[%emt 00:00:03]} Kg7 {[%clk 00:00:15]} {[%emt 00:00:01]} 48. Qa7+ {[%clk
00:00:44]} {[%emt 00:00:02]} Kf8 {[%clk 00:00:16]} {[%emt 00:00:01]} 49. Qb8+
{[%clk 00:00:43]} {[%emt 00:00:02]} Ke7 {[%clk 00:00:17]} {[%emt 00:00:02]} 50.
Qb7+ {[%clk 00:00:43]} {[%emt 00:00:01]} Ke6 {[%clk 00:00:19]} 51. Qb6+ {[%clk
00:00:44]} {[%emt 00:00:01]} Ke5 {[%clk 00:00:20]} 52. Qb8+ {[%clk 00:00:44]}
{[%emt 00:00:02]} Kd4 {[%clk 00:00:20]} {[%emt 00:00:01]} 53. Qf4+ {[%clk
00:00:45]} {[%emt 00:00:01]} Kd3 {[%clk 00:00:20]} {[%emt 00:00:02]} 54. Qxf6
{[%clk 00:00:46]} {[%emt 00:00:02]} Qc2+ {[%clk 00:00:20]} {[%emt 00:00:02]} 55.
Kh3 {[%clk 00:00:47]} {[%emt 00:00:01]} Qc8 {[%clk 00:00:20]} {[%emt 00:00:01]}
56. Kh2 {[%clk 00:00:49]} {[%emt 00:00:01]} Qc2+ {[%clk 00:00:16]} {[%emt
00:00:06]} 57. Kg1 {[%clk 00:00:47]} {[%emt 00:00:04]} Qd1+ {[%clk 00:00:17]}
{[%emt 00:00:01]} 58. Kh2 {[%clk 00:00:48]} {[%emt 00:00:01]} Qe2+ {[%clk
00:00:18]} {[%emt 00:00:01]} 59. Kh3 {[%clk 00:00:49]} Qe4 {[%clk 00:00:15]}
{[%emt 00:00:06]} 60. Qd8+ {[%clk 00:00:47]} {[%emt 00:00:04]} Ke2 {[%clk
00:00:16]} {[%emt 00:00:01]} 61. Qd6 {[%clk 00:00:41]} {[%emt 00:00:08]} Qh1+
{[%emt 00:00:01]} 0-1